bitfinex/quotes_SOLUSD_20250429
["timestamp","ask_amount","ask_price","bid_price","bid_amount"]
[1745959810721,6.7281168,148.63,148.61,19.64964885]
[1745959811221,6.7281168,148.63,148.62,19.64964885]
[1745959814634,6.7281168,148.63,148.61,13.24]
[1745959815522,23.5484088,148.63,148.59,0.99999999]
[1745959816221,26.0,148.6,148.58,1e-08]
[1745959816539,6.72992798,148.59,148.58,1.0]
[1745959817426,6.72992798,148.59,148.58,1e-08]
[1745959817632,6.72992798,148.59,148.58,1.0]
[1745959818447,6.72992798,148.59,148.58,1e-08]
[1745959823641,6.72992798,148.59,148.58,1.0]
[1745959832473,23.55191791,148.61,148.58,1.0]
[1745959832663,23.55191791,148.61,148.59,0.99999999]
[1745959833482,23.55191791,148.61,148.58,1.0]
[1745959833669,23.55191791,148.61,148.59,0.99999999]
[1745959836484,6.72902227,148.61,148.6,0.99999999]
[1745959839090,6.7281168,148.63,148.61,0.99999999]
[1745959840785,6.7281168,148.63,148.6,0.99999999]
[1745959840978,6.7281168,148.63,148.61,0.99999999]
[1745959842978,23.5484088,148.63,148.6,0.99999999]
[1745959843179,23.5484088,148.63,148.59,0.99999999]
[1745959843704,23.5484088,148.63,148.58,1.0]
[1745959844569,23.5484088,148.63,148.59,0.99999999]
[1745959845190,23.5484088,148.63,148.58,1.0]
[1745959845495,23.5484088,148.63,148.59,0.99999999]
[1745959847088,23.5484088,148.63,148.58,1.0]
[1745959847269,23.5484088,148.63,148.59,0.99999999]
[1745959849784,6.7281168,148.63,148.61,0.99999999]
[1745959857394,6.7281168,148.63,148.62,14.21999999]
[1745959858009,6.72766415,148.64,148.63,0.99999999]
[1745959859708,6.78975904,148.66,148.64,0.99999999]
[1745959860008,6.78975904,148.66,148.65,0.99999999]
[1745959861900,0.063,148.66,148.65,0.99999999]
[1745959862501,0.063,148.66,148.64,0.99999999]
[1745959862879,0.063,148.66,148.63,0.99999999]
[1745959863212,0.063,148.66,148.64,0.99999999]
[1745959863707,0.063,148.66,148.63,0.99999999]
[1745959864088,0.063,148.66,148.64,0.99999999]
[1745959865712,0.063,148.66,148.63,0.99999999]
[1745959866610,0.063,148.66,148.64,0.99999999]
[1745959867502,0.063,148.66,148.65,0.99999999]
[1745959867705,0.063,148.66,148.64,0.99999999]
[1745959868286,0.063,148.66,148.65,0.99999999]
[1745959870204,0.063,148.66,148.63,0.99999999]
[1745959870505,0.063,148.66,148.64,0.99999999]
[1745959870901,0.063,148.66,148.63,0.99999999]
[1745959871107,0.063,148.66,148.64,0.99999999]
[1745959872511,26.0,148.65,148.62,14.21999999]
[1745959872806,26.0,148.65,148.62,13.22]
[1745959874394,26.0,148.61,148.55,13.2]
[1745959874592,26.0,148.59,148.55,13.2]
[1745959875996,23.55633327,148.58,148.55,13.2]
[1745959891506,23.55633327,148.58,148.54,0.03]
[1745959899733,6.7294751,148.6,148.54,0.03]
[1745959901127,6.7294751,148.6,148.55,0.14216157]
[1745959901427,6.7294751,148.6,148.56,13.2]
[1745959901428,23.55316285,148.6,148.56,13.2]
[1745959909535,26.0,148.57,148.56,13.2]
[1745959909710,26.0,148.57,148.54,0.03]
[1745959910930,6.73128702,148.56,148.54,0.03]
[1745959915058,6.73038093,148.58,148.54,0.03]
[1745959916840,23.55633327,148.58,148.54,0.03]
[1745959921642,6.73038093,148.58,148.54,0.03]
[1745959922143,6.73038093,148.58,148.55,13.2]
[1745959934177,23.55633327,148.58,148.55,13.2]
[1745959934573,23.55633327,148.58,148.54,0.03]
[1745959954121,26.0,148.55,148.54,0.03]
[1745959954291,26.0,148.55,148.53,0.03]
[1745959956598,6.73219334,148.54,148.53,0.03]
[1745959967838,13.24921898,148.54,148.53,0.03]
[1745959969850,6.73219334,148.54,148.53,0.03]
[1745959978150,16.82855635,148.56,148.53,0.03]
[1745959979347,6.73128702,148.56,148.53,0.03]
[1745959979560,6.73128702,148.56,148.53,19.24829514]
[1745959979727,6.72992798,148.59,148.53,19.24829514]
[1745959981942,6.72992798,148.59,148.53,25.98088538]
[1745959984048,0.063,148.6,148.54,6.4704]
[1745959984358,0.063,148.6,148.58,0.28432314]
[1745959987556,0.063,148.6,148.58,0.14216157]
[1745959987860,0.063,148.6,148.57,18.933972]
[1745960002677,0.063,148.6,148.56,1.79136157]
[1745960002843,0.063,148.6,148.56,18.933972]
[1745960003372,0.063,148.6,148.55,13.34216157]
[1745960005853,0.063,148.6,148.56,19.21829514]
[1745960006376,0.063,148.6,148.58,0.14216157]
[1745960013285,0.063,148.6,148.58,25.94854335]
[1745960013581,0.063,148.6,148.59,28.26720288]
[1745960014760,0.063,148.6,148.59,34.99713086]
[1745960016056,0.063,148.6,148.59,38.16321043]
[1745960016264,0.063,148.6,148.59,31.82964886]
[1745960016569,0.063,148.6,148.59,31.97181043]
[1745960024982,0.063,148.6,148.59,13.18]
[1745960030583,0.063,148.6,148.59,31.97181043]
[1745960031568,0.063,148.6,148.59,32.39829514]
[1745960036668,23.23265665,148.66,148.6,18.79181043]
[1745960037182,23.23265665,148.66,148.6,0.56864628]
[1745960037399,23.23265665,148.66,148.61,18.64964886]
[1745960039993,6.41575904,148.66,148.64,0.14216157]
[1745960040171,6.78951143,148.67,148.65,13.18]
[1745960041181,0.063,148.67,148.65,13.18]
[1745960060717,0.063,148.67,148.62,13.16]
[1745960065034,26.0,148.65,148.62,13.16]
[1745960065815,6.72766415,148.64,148.62,13.16]
[1745960067430,57.1851453,148.64,148.59,13.19]
[1745960073309,23.54682453,148.64,148.59,13.19]
[1745960073936,23.54682453,148.64,148.6,18.79181043]
[1745960075905,23.54682453,148.64,148.59,13.19]
[1745960077723,57.1851453,148.64,148.59,13.19]
[1745960078733,23.54682453,148.64,148.59,13.19]
[1745960086436,23.54682453,148.64,148.6,18.79181043]
[1745960086950,23.54682453,148.64,148.59,13.19]
[1745960092742,23.54682453,148.64,148.6,18.79181043]
[1745960092944,6.72766415,148.64,148.6,18.79181043]
[1745960093248,6.72766415,148.64,148.6,25.45581043]
[1745960093449,6.72766415,148.64,148.61,0.42648471]
[1745960094956,16.81704924,148.66,148.62,18.64964886]
[1745960094957,23.54380828,148.66,148.62,18.64964886]
[1745960096251,6.72675904,148.66,148.63,0.14216157]
[1745960096549,6.789374,148.67,148.65,18.79181043]
[1745960096870,0.063,148.67,148.66,6.88338471]
[1745960097154,0.063,148.67,148.66,25.67519514]
[1745960100468,0.063,148.67,148.66,25.10654886]
[1745960100642,0.063,148.67,148.66,18.64964886]
[1745960101365,0.063,148.67,148.66,18.79181043]
[1745960102661,0.063,148.67,148.65,18.64964886]
[1745960121579,0.063,148.67,148.66,0.56864628]
[1745960122679,0.063,148.67,148.65,18.64964886]
[1745960129085,0.063,148.67,148.64,13.16]
[1745960133287,0.063,148.67,148.65,18.79181043]
[1745960133782,0.063,148.67,148.66,0.42648471]
[1745960135284,0.063,148.67,148.66,25.94505418]
[1745960135474,0.063,148.67,148.66,19.21829514]
[1745960144476,0.063,148.67,148.66,18.79181043]
[1745960161538,0.063,148.67,148.66,19.21829514]
[1745960169514,0.063,148.68,148.67,45.21829514]
[1745960170426,0.063,148.68,148.67,127.71829514]
[1745960170922,0.063,148.68,148.67,129.06279679]
[1745960171700,0.063,148.68,148.67,135.78910337]
[1745960179220,19.06494873,148.68,148.67,135.78910337]
[1745960179433,38.06689746,148.68,148.67,135.78910337]
[1745960179926,19.06494873,148.68,148.67,135.78910337]
[1745960186423,0.063,148.7,148.67,129.97910337]
[1745960186631,19.06494873,148.7,148.69,45.21829514]
[1745960186810,19.06494873,148.7,148.69,148.90791381]
[1745960187127,19.06494873,148.7,148.69,149.18849698]
[1745960199537,12.22139278,148.7,148.69,149.18849698]
[1745960199931,12.22139278,148.7,148.69,134.44369698]
[1745960200134,60.8549639,148.7,148.69,140.83829514]
[1745960200635,60.8549639,148.7,148.69,114.83829514]
[1745960201019,12.22139278,148.7,148.69,121.56369698]
[1745960209932,12.22139278,148.7,148.69,121.56369698]
[1745960210549,12.22139278,148.7,148.69,114.83829514]
[1745960215459,12.22139278,148.7,148.69,121.56369698]
[1745960217243,12.22139278,148.7,148.69,114.83829514]
[1745960221153,60.8549639,148.7,148.69,114.83829514]
[1745960221741,12.22139278,148.7,148.69,114.83829514]
[1745960226957,12.22139278,148.7,148.69,121.56369698]
[1745960228862,12.22139278,148.7,148.69,114.83829514]
[1745960229863,12.22139278,148.7,148.69,121.56369698]
[1745960231261,12.22139278,148.7,148.69,114.83829514]
[1745960231475,60.8549639,148.7,148.69,31.91181043]
[1745960231983,67.57991346,148.7,148.69,31.91181043]
[1745960232456,67.57991346,148.7,148.69,32.33829514]
[1745960232763,67.57991346,148.7,148.69,32.053972]
[1745960233067,67.57991346,148.7,148.69,32.33829514]
[1745960245570,60.8549639,148.7,148.69,32.33829514]
[1745960247888,12.22139278,148.7,148.69,32.33829514]
[1745960250392,60.8549639,148.7,148.69,32.33829514]
[1745960254502,0.063,148.7,148.69,32.33829514]
[1745960265285,0.063,148.7,148.69,39.06369698]
[1745960268906,0.063,148.7,148.69,121.56369698]
[1745960271395,0.063,148.72,148.71,19.79181043]
[1745960271708,0.063,148.72,148.71,104.06252564]
[1745960272010,0.063,148.73,148.71,104.06252564]
[1745960272011,0.063,148.73,148.72,20.21829514]
[1745960272320,0.063,148.73,148.72,102.71829514]
[1745960273700,0.063,148.73,148.72,108.44234032]
[1745960274023,0.063,148.73,148.72,134.44234032]
[1745960275112,0.063,148.73,148.72,147.54234032]
[1745960280830,0.063,148.73,148.72,121.54234032]
[1745960281208,0.063,148.73,148.72,122.88645631]
[1745960281529,0.063,148.73,148.72,148.88645631]
[1745960281722,0.063,148.73,148.72,147.54234032]
[1745960311877,0.063,148.73,148.72,134.44234032]
[1745960312080,0.063,148.73,148.72,147.54234032]
[1745960324867,0.063,148.73,148.72,140.81829514]
[1745960325561,0.063,148.73,148.72,32.31829514]
[1745960328488,0.063,148.73,148.72,19.21829514]
[1745960328688,0.063,148.73,148.72,32.31829514]
[1745960330667,0.063,148.73,148.68,230.72]
[1745960330870,0.063,148.73,148.69,31.89181043]
[1745960331281,0.063,148.73,148.7,0.14216157]
[1745960331983,0.063,148.73,148.69,31.89181043]
[1745960332694,0.063,148.73,148.7,0.14216157]
[1745960333673,0.063,148.73,148.71,18.79181043]
[1745960333872,0.063,148.73,148.7,0.56864628]
[1745960337201,0.063,148.73,148.72,0.14216157]
[1745960338202,0.063,148.73,148.72,25.94234032]
[1745960338511,0.063,148.73,148.72,19.21829514]
[1745960343601,0.063,148.73,148.7,0.28432314]
[1745960343776,0.063,148.73,148.7,19.21829514]
[1745960344207,0.063,148.73,148.7,19.07613357]
[1745960352215,0.063,148.73,148.7,0.56864628]
[1745960359520,0.063,148.73,148.7,0.14216157]
[1745960359725,0.063,148.73,148.69,13.1]
[1745960370434,23.5955758,148.73,148.69,13.1]
[1745960380945,26.0,148.7,148.67,13.1]
[1745960382453,6.72540184,148.69,148.67,13.1]
[1745960386868,12.32746254,148.69,148.67,13.1]
[1745960390281,6.72540184,148.69,148.67,13.1]
[1745960398660,23.53890644,148.69,148.66,0.063]
[1745960399659,26.0,148.67,148.66,0.063]
[1745960400358,26.0,148.67,148.66,1e-08]
[1745960400543,27.5349,148.67,148.66,1e-08]
[1745960400868,27.5349,148.67,148.64,1e-08]
[1745960401368,26.0,148.66,148.61,0.063]
[1745960401961,23.54524049,148.65,148.61,0.063]
[1745960403393,26.0,148.62,148.61,0.063]
[1745960403871,32.7285695,148.62,148.61,0.063]
[1745960406873,32.7285695,148.62,148.61,1e-08]
[1745960412878,6.7281168,148.63,148.61,1e-08]
[1745960417282,6.72721157,148.65,148.61,1e-08]
[1745960420492,6.72721157,148.65,148.61,0.42648472]
[1745960422111,23.5422361,148.67,148.61,0.42648472]
[1745960423190,6.72630658,148.67,148.63,0.14216157]
[1745960423392,6.72630658,148.67,148.64,13.08]
[1745960425117,6.72630658,148.67,148.65,0.14216157]
[1745960426702,26.0,148.7,148.65,0.14216157]
[1745960427919,6.72540184,148.69,148.65,0.14216157]
[1745960428094,32.72540184,148.69,148.65,0.14216157]
[1745960434827,49.53890644,148.69,148.65,0.14216157]
[1745960444831,49.53890644,148.69,148.62,0.14216157]
[1745960445017,49.53890644,148.69,148.64,0.14216157]
[1745960450709,49.53890644,148.69,148.64,0.56864628]
[1745960455041,32.72540184,148.69,148.64,0.56864628]
[1745960462748,32.72540184,148.69,148.66,0.14216157]
[1745960468652,32.72540184,148.69,148.65,13.08]
[1745960468842,49.53890644,148.69,148.65,13.08]
[1745960491482,49.53890644,148.69,148.65,0.14216157]
[1745960491682,83.16591565,148.69,148.64,13.08]
[1745960492975,83.16591565,148.69,148.63,0.14216157]
[1745960512706,83.16591565,148.69,148.62,13.08]
[1745960528830,83.16591565,148.69,148.61,13.62864629]
[1745960536945,26.0,148.66,148.61,1e-08]
[1745960537126,26.0,148.65,148.61,1e-08]
[1745960537728,26.0,148.64,148.59,1e-08]
[1745960537934,26.0,148.64,148.57,0.063]
[1745960538948,57.1889928,148.63,148.57,0.063]
[1745960540727,23.5484088,148.63,148.57,0.063]
[1745960542742,23.5484088,148.63,148.58,1.6283]
[1745960542953,23.5484088,148.63,148.59,0.14216157]
[1745960558674,23.5484088,148.63,148.57,13.123]
[1745960565483,57.1889928,148.63,148.57,13.123]
[1745960569968,57.1889928,148.63,148.57,0.063]
[1745960570175,26.0,148.6,148.57,0.063]
[1745960570490,6.72992798,148.59,148.56,0.03]
[1745960570666,26.0,148.56,148.55,0.063]
[1745960571491,31.63645599,148.56,148.55,0.063]
[1745960572557,38.36774301,148.56,148.55,0.063]
[1745960572756,38.36774301,148.56,148.54,0.03]
[1745960576292,32.73128702,148.56,148.54,0.03]
[1745960578801,38.41894952,148.56,148.54,0.03]
[1745960584903,32.73128702,148.56,148.54,0.03]
[1745960585206,6.73128702,148.56,148.54,0.03]
[1745960585578,16.82738416,148.57,148.54,0.03]
[1745960585784,23.55821811,148.57,148.54,0.03]
[1745960589710,26.0,148.55,148.54,0.03]
[1745960592209,32.73174015,148.55,148.54,0.03]
[1745960595214,32.73174015,148.55,148.53,0.03]
[1745960607505,49.56109053,148.55,148.52,0.03]
[1745960607728,55.92719053,148.55,148.5,0.03]
[1745960607925,26.0,148.51,148.46,0.063]
[1745960608113,26.0,148.5,148.46,0.063]
[1745960609202,27.5492,148.5,148.46,1e-08]
[1745960609516,27.5492,148.5,148.41,0.03]
[1745960609517,57.24291197,148.49,148.41,0.03]
[1745960609700,26.0,148.46,148.41,0.03]
[1745960612323,6.73627484,148.45,148.41,0.03]
[1745960613726,6.73627484,148.45,148.41,0.59864628]
[1745960613902,23.5658497,148.52,148.45,8.2515]
[1745960614420,26.0,148.51,148.45,8.2515]
[1745960616311,6.73400673,148.5,148.45,8.2515]
[1745960616823,6.73400673,148.5,148.46,19.21829514]
[1745960617028,16.83045725,148.55,148.46,19.21829514]
[1745960617214,26.0,148.52,148.46,19.21829514]
[1745960617615,26.0,148.54,148.46,19.21829514]
[1745960617819,16.83045725,148.55,148.46,19.21829514]
[1745960618003,26.0,148.54,148.46,19.21829514]
[1745960618405,6.7326466,148.53,148.46,19.21829514]
[1745960618926,6.7326466,148.53,148.46,25.95405093]
[1745960621808,6.7326466,148.53,148.46,23.34209493]
[1745960624029,6.73174015,148.55,148.48,18.64964886]
[1745960624236,6.73174015,148.55,148.46,106.07530853]
[1745960624237,6.73174015,148.55,148.5,19.21829514]
[1745960624426,6.73174015,148.55,148.5,32.29829514]
[1745960625113,6.73174015,148.55,148.51,1.627]
[1745960626534,23.55791882,148.57,148.51,1.627]
[1745960628033,26.0,148.54,148.49,6.3361]
[1745960628639,23.5642631,148.53,148.49,6.3361]
[1745960630633,6.7326466,148.53,148.49,6.3361]
[1745960633436,6.73174015,148.55,148.5,19.21829514]
[1745960633644,6.73174015,148.55,148.5,25.95227925]
[1745960633809,6.73083395,148.57,148.52,19.21829514]
[1745960634248,6.73083395,148.57,148.53,13.56]
[1745960635438,16.82688935,148.58,148.53,13.56]
[1745960635636,6.72992798,148.59,148.54,19.21829514]
[1745960636917,23.55474795,148.59,148.55,6.1725]
[1745960640159,23.55474795,148.59,148.54,19.21829514]
[1745960644656,6.72992798,148.59,148.54,19.21829514]
[1745960644949,6.72992798,148.59,148.54,25.95046452]
[1745960645141,6.72992798,148.59,148.54,19.21829514]
[1745960645643,6.72992798,148.59,148.54,25.95043621]
[1745960647051,0.063,148.61,148.54,25.95043621]
[1745960647223,0.063,148.61,148.55,6.3401]
[1745960647550,0.063,148.61,148.56,19.21829514]
[1745960647729,0.063,148.61,148.57,1.5149]
[1745960647930,0.063,148.61,148.59,19.21829514]
[1745960650119,0.063,148.62,148.6,27.16116566]
[1745960650448,0.063,148.62,148.61,46.87979514]
[1745960650628,0.063,148.63,148.61,46.87979514]
[1745960650824,0.063,148.63,148.62,27.29201933]
[1745960651428,0.063,148.63,148.62,19.21829514]
[1745960653358,0.063,148.63,148.61,0.14216157]
[1745960653659,0.063,148.63,148.61,19.21829514]
[1745960653953,0.063,148.63,148.61,18.933972]
[1745960654460,0.063,148.63,148.61,13.56]
[1745960682567,0.063,148.63,148.6,14.06864628]
[1745960683071,0.063,148.63,148.61,18.64964886]
[1745960687177,0.063,148.63,148.62,25.82309514]
[1745960688895,0.063,148.63,148.62,32.55166464]
[1745960689097,0.063,148.63,148.62,35.40976695]
[1745960690501,0.063,148.63,148.62,61.40976695]
[1745960697905,0.063,148.63,148.62,61.40976695]
[1745960708616,0.063,148.63,148.62,46.13701274]
[1745960708801,0.063,148.63,148.62,46.56349745]
[1745960708994,0.063,148.63,148.62,53.29206695]
[1745960714007,0.063,148.63,148.62,66.63206695]
[1745960714501,0.063,148.63,148.62,59.90349745]
[1745960716322,0.063,148.63,148.62,58.55829514]
[1745960716637,0.063,148.63,148.62,32.273972]
[1745960716930,0.063,148.63,148.62,32.55829514]
[1745960717123,0.063,148.63,148.62,32.41613357]
[1745960719035,0.063,148.63,148.62,32.55829514]
[1745960725113,0.063,148.63,148.62,33.90363264]
[1745960730018,0.063,148.63,148.62,32.55829514]
[1745960732840,0.063,148.63,148.62,39.28686464]
[1745960733138,0.063,148.63,148.62,40.63213729]
[1745960737655,0.063,148.63,148.62,155.30253729]
[1745960737948,0.063,148.63,148.62,127.95726464]
[1745960738149,0.063,148.63,148.62,129.30210461]
[1745960740155,0.063,148.63,148.62,155.30210461]
[1745960740340,0.063,148.63,148.62,153.95726464]
[1745960751560,0.063,148.63,148.62,128.95726464]
[1745960751727,0.063,148.65,148.64,45.21829514]
[1745960751935,0.063,148.65,148.64,129.06302858]
[1745960753046,0.063,148.65,148.64,135.79069273]
[1745960757859,0.063,148.65,148.64,109.79069273]
[1745960758167,0.063,148.65,148.64,110.79069273]
[1745960758369,0.063,148.67,148.66,44.933972]
[1745960758553,0.063,148.67,148.66,46.56284778]
[1745960759451,0.063,148.67,148.66,53.28960682]
[1745960761655,0.063,148.67,148.66,135.78960682]
[1745960766572,0.063,148.67,148.66,110.78960682]
[1745960768078,0.063,148.67,148.66,109.78960682]
[1745960768282,0.063,148.67,148.66,110.78960682]
[1745960769788,0.063,148.7,148.68,19.21829514]
[1745960770091,0.063,148.7,148.68,116.22267082]
[1745960770582,0.063,148.7,148.68,119.6296433]
[1745960770878,0.063,148.7,148.68,126.35549748]
[1745960777388,0.063,148.7,148.69,19.21829514]
[1745960779074,0.063,148.7,148.69,101.71829514]
[1745960779691,0.063,148.7,148.69,108.44369698]
[1745960783492,0.063,148.7,148.69,339.18369698]
[1745960788193,0.03,148.71,148.69,359.18369698]
[1745960788390,0.03,148.71,148.7,20.56241149]
[1745960788587,0.063,148.74,148.71,19.21829514]
[1745960788805,0.063,148.74,148.71,101.71829514]
[1745960789910,1e-08,148.73,148.72,121.71829514]
[1745960790200,1e-08,148.73,148.72,129.78620534]
[1745960793492,1e-08,148.74,148.73,19.21829514]
[1745960793694,0.03,148.78,148.76,45.21829514]
[1745960793896,0.03,148.78,148.77,19.21829514]
[1745960794098,0.03,148.79,148.78,0.42648471]
[1745960794297,0.03,148.79,148.78,33.68177095]
[1745960794901,1.5326,148.87,148.79,51.93917691]
[1745960795105,1.5326,148.87,148.79,134.43917691]
[1745960795999,8.24988221,148.87,148.79,134.43917691]
[1745960804786,0.03,148.86,148.79,134.43917691]
[1745960805583,0.03,148.86,148.79,109.78268807]
[1745960807111,0.03,148.86,148.79,115.30597566]
[1745960807407,0.03,148.86,148.79,109.78268807]
[1745960809302,0.03,148.86,148.79,110.78268807]
[1745960809501,0.03,148.86,148.79,341.38268807]
[1745960809712,0.03,148.86,148.79,340.03917691]
[1745960810728,0.03,148.86,148.79,345.59259605]
[1745960811217,0.03,148.86,148.79,344.59259605]
[1745960811524,0.03,148.86,148.79,345.59259605]
[1745960811732,0.03,148.86,148.81,64.79181043]
[1745960811897,0.03,148.86,148.81,66.5613895]
[1745960812103,0.03,148.86,148.81,149.0613895]
[1745960812424,0.03,148.86,148.81,147.71829514]
[1745960813122,0.03,148.86,148.81,154.43827363]
[1745960819214,0.063,148.82,148.81,154.43827363]
[1745960822032,0.063,148.82,148.81,134.01178892]
[1745960822613,0.063,148.82,148.81,134.43827363]
[1745960823220,0.063,148.82,148.81,127.71829514]
[1745960823423,0.063,148.82,148.81,127.57613357]
[1745960823635,0.063,148.82,148.81,127.71829514]
[1745960824407,0.063,148.82,148.81,127.57613357]
[1745960825137,0.063,148.82,148.81,127.71829514]
[1745960826524,0.063,148.82,148.81,19.07613357]
[1745960826725,1.5912,148.82,148.81,18.64964886]
[1745960826933,1.5912,148.82,148.79,230.74216157]
[1745960827142,1.5912,148.82,148.8,18.64964886]
[1745960828330,6.71997849,148.81,148.8,18.64964886]
[1745960831047,1.5912,148.82,148.8,18.64964886]
[1745960831048,8.31092679,148.82,148.8,18.64964886]
[1745960832845,8.31092679,148.82,148.79,230.6]
[1745960833224,25.10974415,148.82,148.79,230.6]
[1745960833623,31.52374415,148.82,148.79,230.6]
[1745960834446,31.52374415,148.82,148.78,13.12]
[1745960856879,25.10974415,148.82,148.78,13.12]
[1745960866660,23.58154415,148.82,148.78,13.12]
[1745960868954,16.86181736,148.82,148.78,13.12]
[1745960870477,0.063,148.82,148.78,13.12]
[1745960895391,26.0,148.81,148.78,13.12]
[1745960896310,8.2297301,148.8,148.78,13.12]
[1745960896603,41.83188063,148.8,148.74,13.12]
[1745960898002,58.63295589,148.8,148.74,13.12]
[1745960900936,26.0,148.77,148.74,13.12]
[1745960902928,6.72223716,148.76,148.74,13.12]
[1745960907620,23.52783006,148.76,148.73,0.063]
[1745960921440,26.0,148.74,148.73,0.063]
[1745960921823,26.0,148.74,148.72,0.063]
[1745960922152,26.0,148.73,148.72,0.063]
[1745960923140,32.72359308,148.73,148.72,0.063]
[1745960923361,32.72359308,148.73,148.72,1e-08]
[1745960925577,51.65756508,148.73,148.72,1e-08]
[1745960925869,52.65756508,148.73,148.72,1e-08]
[1745960926175,51.65756508,148.73,148.72,1e-08]
[1745960928778,32.72359308,148.73,148.72,1e-08]
[1745960928981,6.72359308,148.73,148.72,1e-08]
[1745960929373,32.72359308,148.73,148.72,1e-08]
[1745960929963,6.72359308,148.73,148.72,1e-08]
[1745960930168,32.72359308,148.73,148.72,1e-08]
[1745960930852,16.8055929,148.76,148.72,1e-08]
[1745960931289,26.0,148.73,148.72,1e-08]
[1745960933089,32.72359308,148.73,148.72,1e-08]
[1745960953307,32.72359308,148.73,148.72,1e-08]
[1745960953804,6.72359308,148.73,148.72,1e-08]
[1745960954110,32.72359308,148.73,148.72,1e-08]
[1745960965909,16.8055929,148.76,148.72,1e-08]
[1745960966212,26.0,148.73,148.72,1e-08]
[1745960967199,6.72359308,148.73,148.72,1e-08]
[1745960968700,6.72314105,148.74,148.72,1e-08]
[1745960981739,26.0,148.73,148.72,1e-08]
[1745960981943,26.0,148.72,148.68,1e-08]
[1745960984423,26.0,148.69,148.68,1e-08]
[1745960985434,32.72540184,148.69,148.68,1e-08]
[1745960991535,32.72540184,148.69,148.67,1e-08]
[1745960991715,49.53890644,148.69,148.66,1e-08]
[1745960995319,6.72540184,148.69,148.66,1e-08]
[1745960996338,6.72494956,148.7,148.66,1e-08]
[1745961000047,23.53732346,148.7,148.66,1e-08]
[1745961015633,26.0,148.67,148.66,1e-08]
[1745961016740,32.72630658,148.67,148.66,1e-08]
[1745961019843,32.72630658,148.67,148.63,1e-08]
[1745961019844,49.54207304,148.67,148.63,1e-08]
[1745961020663,26.0,148.63,148.62,1e-08]
[1745961021164,32.7281168,148.63,148.62,1e-08]
[1745961021767,49.5484088,148.63,148.6,1e-08]
[1745961022847,49.5484088,148.63,148.59,1e-08]
[1745961026038,84.1889928,148.63,148.56,13.15]
[1745961026540,84.1889928,148.63,148.56,0.03]
[1745961028863,83.1889928,148.63,148.56,0.03]
[1745961029066,57.1889928,148.63,148.56,0.03]
[1745961029346,26.0,148.61,148.56,0.03]
[1745961030976,6.7294751,148.6,148.56,0.03]
[1745961031155,23.55316285,148.6,148.56,0.03]
[1745961033476,26.0,148.58,148.56,0.03]
[1745961033864,26.0,148.57,148.56,0.03]
[1745961034080,26.0,148.57,148.55,0.03]
[1745961034454,26.0,148.53,148.51,0.063]
[1745961034647,26.0,148.53,148.5,0.03]
[1745961034648,6.73309991,148.52,148.5,0.03]
[1745961034847,26.0,148.49,148.47,0.03]
[1745961036666,1.5901,148.54,148.47,0.03]
[1745961036975,26.0,148.52,148.47,0.03]
[1745961038280,6.7326466,148.53,148.47,0.03]
[1745961038673,6.7326466,148.53,148.49,6.3595]
[1745961042797,23.5642631,148.53,148.49,6.3595]
[1745961044692,23.5642631,148.53,148.48,1.5755]
[1745961046787,6.73536741,148.47,148.46,1e-08]
[1745961062407,26.0,148.44,148.43,1e-08]
[1745961064205,32.73672864,148.44,148.43,1e-08]
[1745961064406,49.57855025,148.44,148.4,1e-08]
[1745961064634,26.0,148.41,148.36,13.14]
[1745961064919,26.0,148.4,148.34,0.03]
[1745961066304,23.58649504,148.39,148.34,0.03]
[1745961067323,26.0,148.36,148.34,1e-08]
[1745961068297,6.74081563,148.35,148.34,1e-08]